Cogmind - Beta 15 @@@ ROGUE MODE // 2025.05.18 @ 00:03:45 Player: surprisinglarge Result: Self-destructed Performance ------------- Evolutions (1) 500 Regions Visited (2) 400 Robots Destroyed (30) 150 Value Destroyed (659) 659 Prototype IDs (0) 0 Alien Tech Used (0) 0 Bonus (0) 0 TOTAL SCORE: 1709 Bonus ------- None Cogmind --------- Core Integrity 294/400 Matter 247/300 Energy 86/125 System Corruption 0% Temperature Critical (552) Movement Walking (120) Location -9/Materials Parts ------- > --- POWER (1) -------- Light Ion Engine > --- PROPULSION (3) --- Aluminum Leg Aluminum Leg > --- UTILITY (3) ------ Small Storage Unit Signal Interpreter Improved Light Armor Plating > --- WEAPON (2) ------- Beam Rifle > --- INVENTORY (8) ---- Visual Processing Unit Recoil Stabilizer Pulse Rifle Particle Cannon Peak State ------------ > --- POWER ------------ Light Ion Engine > --- PROPULSION ------- Aluminum Leg Aluminum Leg Aluminum Leg > --- UTILITY ---------- Small Storage Unit Signal Interpreter Improved Light Armor Plating > --- WEAPON ----------- Beam Rifle Beam Cannon > --- INVENTORY -------- Visual Processing Unit Recoil Stabilizer Pulse Rifle Particle Cannon [Rating: 13] Favorites ----------- Power Light Ion Engine Engine Light Ion Engine Propulsion Aluminum Leg Leg Aluminum Leg Utility Small Storage Unit Storage Small Storage Unit Processor Signal Interpreter Protection Improved Light Armor Plating Weapon Small Laser Energy Gun Small Laser Energy Cannon Beam Cannon Ballistic Gun Light Assault Rifle Build | -11 -10 -9 ------- Run | Yrd Mat Mat Slots Evolved 2 | . . 2 Power . | . . . Propulsion 1 | . . 1 Utility 1 | . . 1 Weapon . | . . . Parts Attached 21 | 6 8 7 Power 5 | 1 3 1 Engine 5 | 1 3 1 Core . | . . . Reactor . | . . . Propulsion 7 | 2 2 3 Treads . | . . . Leg 7 | 2 2 3 Wheel . | . . . Hover . | . . . Flight . | . . . Utility 3 | 1 1 1 Device . | . . . Storage 1 | 1 . . Processor 1 | . 1 . Hackware . | . . . Protection 1 | . . 1 Artifact . | . . . Weapon 6 | 2 2 2 Energy Gun 4 | 2 1 1 Energy Cannon 1 | . . 1 Ballistic Gun 1 | . 1 . Ballistic Cannon . | . . . Launcher . | . . . Special Weapon . | . . . Impact Weapon . | . . . Slashing Weapon . | . . . Piercing Weapon . | . . . Special Melee Weapon . | . . . Unidentified Prototypes . | . . . Parts Lost 7 | . 3 4 Power 3 | . 2 1 Propulsion 3 | . 1 2 Utility . | . . . Weapon 1 | . . 1 Highest Loss Streak 2 | . 1 2 To Critical Strikes . | . . . Average Backups 1 | . . 2 Power . | . . . Propulsion . | . . . Utility . | . . . Weapon . | . . 1 Tool/Special . | . . . Unused Backups 4 | . . 4 Power . | . . . Propulsion . | . . . Utility 2 | . . 2 Weapon 2 | . . 2 Tool/Special . | . . . Average Slot Usage (%) 89 | . 96 82 Engine 10 | . 12 9 Leg 25 | . 27 24 Storage 12 | . 14 11 Processor 12 | . 13 11 Protection 2 | . . 4 Energy Gun 16 | . 20 11 Energy Cannon 5 | . . 10 Ballistic Gun 3 | . 6 . Peak Build Rating 13 | 6 7 13 Average Rating 7 | 3 6 9 On Entrance 4 | . 6 7 Naked Turns . | . . . Heaviest Build 17 | 10 11 17 Greatest Support 30 | 20 20 30 Greatest Overweight (x) 1 | . 1 . Average Overweight (x) . | . . . Largest Inventory Capacity 8 | 8 8 8 Average Capacity 7 | 6 8 8 Most Carried 5 | 5 4 5 Average Carried 1 | 1 . 2 Final Capacity 8 | 8 8 8 Final Carried 4 | . . 4 Class Distribution -------------------- 69% | Mutant 30% | Scavenger-Mutant Dominant Class ---------------- Mutant | -10/Materials Mutant | -9/Materials Resources | -11 -10 -9 ----------- Run | Yrd Mat Mat Matter Collected 425 | 174 61 190 Remotely . | . . . Salvage Created 904 | . 272 632 Parts 51 | . 17 34 Haulers Intercepted . | . . . Recyclers Shooed . | . . . Parts Field Recycled . | . . . Retrieved Matter . | . . . Parts Self-Destructed . | . . . Prevented . | . . . Kills | -11 -10 -9 ------- Run | Yrd Mat Mat Combat Hostiles Destroyed 25 | . 12 13 Guns 17 | . 12 5 Cannons 7 | . . 7 Classes Destroyed 6 | . 2 4 Recycler 2 | . . 2 Watcher 3 | . . 3 Swarmer 12 | . 8 4 Grunt 11 | . 4 7 Duelist 1 | . . 1 Sentry 1 | . . 1 Best Kill Streak 4 | . 4 4 Combat Bots Only 4 | . 4 3 Max Kills in Single Turn 2 | . 1 2 Gunslinging . | . . . Exploded . | . . . Melee . | . . . Uniques/NPCs Destroyed . | . . . Combat | -11 -10 -9 -------- Run | Yrd Mat Mat Hostile Shots Fired 187 | . 102 85 Missed 65 | . 39 26 Hits 122 | . 63 59 Projectile 122 | . 63 59 Critical Strikes 1 | . 1 . Damage Taken 1159 | . 584 575 Core 237 | . 131 106 Absorbed by Shields . | . . . Core Remaining (%) 73 | 100 47 . Volleys Fired 95 | . 45 50 Largest 2 | . 2 2 Hottest 116 | . 80 116 Shots Fired 186 | . 86 100 Gun 136 | . 86 50 Cannon 50 | . . 50 Launcher . | . . . Special . | . . . Kinetic 14 | . 14 . Thermal 172 | . 72 100 Explosive . | . . . Electromagnetic . | . . . Robot Hit Streak 8 | . 7 8 Robot Miss Streak 6 | . 6 4 Penetration Max . | . . . Secondary Targets 5 | . 5 . Max Gunslinging Chain 1 | . 1 . Shots Hit Robots 97 | . 43 54 Core Hits 38 | . 18 20 Critical Kills . | . . . Critical Parts Destroyed . | . . . Critical Strikes 2 | . 1 1 Burn 2 | . 1 1 Melee Attacks . | . . . Impact . | . . . Slashing . | . . . Piercing . | . . . Sneak Attacks . | . . . Combat Hostiles . | . . . Follow-up Attacks . | . . . Damage Inflicted 1331 | . 457 874 Guns 839 | . 457 382 Cannons 489 | . . 489 Explosions . | . . . Melee . | . . . Ramming 3 | . . 3 Kinetic 72 | . 72 . Thermal 1256 | . 385 871 Explosive . | . . . Electromagnetic . | . . . Impact . | . . . Slashing . | . . . Piercing . | . . . Highest Corruption . | . . . Average Corruption . | . . . Corruption Purged . | . . . Corruption Blocked . | . . . Overload Shots . | . . . Overflow Damage . | . . . Projectiles . | . . . Explosions . | . . . Melee . | . . . Knockbacks . | . . . Impact . | . . . Kinetic . | . . . Secondary . | . . . Self-Inflicted Damage . | . . . Shots . | . . . Rammed . | . . . Targets Rammed 1 | . . 1 Kicked 1 | . . 1 Crushed . | . . . Highest Temperature 573 | . 230 573 Average Temperature 138 | . 97 165 Received Heat Transfer 315 | . 144 171 Effects 21 | . 3 18 Shutdowns 3 | . . 3 Energy Bleed 1 | . . 1 Interference 9 | . 3 6 Matter Decay 1 | . . 1 Short Circuit 1 | . . 1 Damage (minor) 2 | . . 2 Damage (major) 4 | . . 4 Siege Activations . | . . . Martial Activations . | . . . Shielding Activations . | . . . Robots Disrupted . | . . . Combat Hostiles . | . . . Robots Corrupted . | . . . Combat Hostiles . | . . . Parts Fried . | . . . Impact Corruptions . | . . . Robots Melted 1 | . . 1 Combat Hostiles 1 | . . 1 Parts Melted 7 | . 2 5 Heat Transferred 3080 | . 1008 2072 Parts Sabotaged . | . . . Parts Stolen . | . . . Parts Stripped . | . . . Power Chain Reactions . | . . . Alert | -11 -10 -9 ------- Run | Yrd Mat Mat Maximum Alert Level . | . . . Low Security (%) 100 | 100 100 100 Level 1 . | . . . Level 2 . | . . . Level 3 . | . . . Level 4 . | . . . Level 5 . | . . . High Security . | . . . Max Security . | . . . Peak Influence 177 | . 145 177 Initial 27 | . . 27 Average 62 | . 65 63 Influence Increases 656 | . 285 371 Destroy 0b10 Robot/C 500 | . 240 260 Destroy 0b10 Robot/NC 25 | . . 25 Destroy Leader 86 | . 30 56 Lose Combat Pursuer 45 | . 15 30 Influence Decreases 497 | . 218 279 Entered New Map 40 | . . 40 Time Decay 387 | . 188 199 Lost Part 70 | . 30 40 Squads Dispatched 2 | . . 2 Investigation 1 | . . 1 Extermination . | . . . Reinforcement 1 | . . 1 Assault . | . . . Garrison . | . . . Intercept . | . . . Searches Triggered . | . . . Construction Impeded . | . . . Haulers Reinforced . | . . . Active Scanning Responses . | . . . Cargo Convoy Interrupts . | . . . Stealth | -11 -10 -9 --------- Run | Yrd Mat Mat Distress Signals 5 | . 1 4 Communications Jammed . | . . . Distress Signals . | . . . Times Spotted 42 | . 19 23 Peak Tracking Total 5 | . 4 5 Tactical Retreats 3 | . 1 2 Traps | -11 -10 -9 ------- Run | Yrd Mat Mat Traps Triggered 3 | . 2 1 Indirectly . | . . . Trap Hack Attempts . | . . . Triggered . | . . . Disarmed . | . . . Reprogrammed . | . . . Reused . | . . . Traps Extracted . | . . . Installed . | . . . Triggered . | . . . Machines | -11 -10 -9 ---------- Run | Yrd Mat Mat Machines Disabled . | . . . Max in Single Turn . | . . . Machines Repaired . | . . . Machines Dismantled . | . . . Machines Sabotaged . | . . . Overloaded Fab Kills . | . . . Hacking | -11 -10 -9 --------- Run | Yrd Mat Mat Machines Accessed . | . . . Terminals . | . . . Fabricators . | . . . Repair Stations . | . . . Recycling Units . | . . . Scanalyzers . | . . . Garrison Access . | . . . Total Hacks . | . . . Successful . | . . . Failed . | . . . Catastrophic . | . . . Database Lockouts . | . . . Manual . | . . . Terminals . | . . . Fabricators . | . . . Repair Stations . | . . . Recycling Units . | . . . Scanalyzers . | . . . Garrison Access . | . . . Terminal Hacks . | . . . Fabricator Hacks . | . . . Repair Station Hacks . | . . . Recycling Unit Hacks . | . . . Scanalyzer . | . . . Garrison Access Hacks . | . . . Unauthorized Hacks . | . . . Terminals . | . . . Fabricators . | . . . Repair Stations . | . . . Recycling Units . | . . . Scanalyzers . | . . . Garrison Access . | . . . Data Cores Recovered . | . . . Used . | . . . Hacking Detections . | . . . Full Trace Events . | . . . Feedback Events . | . . . Feedback Blocked . | . . . Robot Schematics Acquired . | . . . Robots Built . | . . . Authchips . | . . . Time . | . . . Total Robot Build Rating . | . . . Part Schematics Acquired . | . . . Parts Built . | . . . Authchips . | . . . Time . | . . . Total Part Build Rating . | . . . Parts Repaired . | . . . Time . | . . . Parts Recycled . | . . . Recycled Matter . | . . . Retrieved Matter . | . . . Retrieved Components . | . . . Parts Scanalyzed . | . . . Part Schematics Acquired . | . . . Parts Damaged . | . . . Bothacking | -11 -10 -9 ------------ Run | Yrd Mat Mat Used RIF Installer . | . . . Robots Hacked . | . . . Non-combat . | . . . Combat . | . . . Robot Hacks Applied . | . . . Relay Couplers Released . | . . . Fabnet Peak Effective % . | . . . Robots Rewired . | . . . Allies Hacked . | . . . Hacks Repelled . | . . . Allies | -11 -10 -9 -------- Run | Yrd Mat Mat Total Allies . | . . . Largest Group . | . . . Highest-Rated Group . | . . . Highest-Rated Ally . | . . . Total Orders . | . . . Ally Attacks . | . . . Total Damage . | . . . Kills . | . . . Allies Corrupted . | . . . Allies Melted . | . . . Intel | -11 -10 -9 ------- Run | Yrd Mat Mat Active Infowar (turns) . | . . . Robot Analysis Total . | . . . Derelict Logs Recovered . | . . . Drone Launches . | . . . Drone Recoveries . | . . . Exploration | -11 -10 -9 ------------- Run | Yrd Mat Mat Turns Passed 1030 | 44 517 469 Spaces Moved 587 | 36 304 247 Core 16 | 14 2 . Treads . | . . . Legs 571 | 22 302 247 Wheels . | . . . Hover . | . . . Flight . | . . . Fastest Speed 50 | 50 100 120 Average Speed 118 | 92 119 120 Slowest Speed 120 | 120 120 120 Overloaded Moves . | . . . Propulsion Burnouts . | . . . Robots Hopped . | . . . Potential Cave-ins . | . . . Cave-ins Triggered . | . . . Exploration Rate (%) 31 | 3 54 36 Regions Visited 2 Branch Regions . Pre-discovered Areas . | . . . Known Exits Taken 1 | . 1 . Unknown Exits Taken 1 | 1 . . Scrap Searched . | . . . Spaces Dug . | . . . Terrain Destroyed . | . . . Melee . | . . . Projectile . | . . . AOE . | . . . Terrain Rammed . | . . . Walls Destroyed . | . . . Machines Disabled . | . . . Actions | -11 -10 -9 --------- Run | Yrd Mat Mat Total 740 | 46 374 320 Wait 5 | . 5 . Move 585 | 35 303 247 Hop . | . . . Pick Up 26 | 5 10 11 Fast Attach 1 | 1 . . Attach 21 | 5 10 6 Detach 1 | . . 1 Swap 1 | . . 1 Drop 4 | . 1 3 Fire 95 | . 45 50 Melee . | . . . Ram . | . . . Kick 1 | . . 1 Crush . | . . . Escape Stasis . | . . . Rewire . | . . . Trap . | . . . Miscellaneous . | . . . Route ------- -11/Scrapyard -10/Materials -9/Materials (discovered 1 exit: [*Min]) History --------- Turn | Location | Event 21 | -11/Scrapyard | Discovered new exit (range 14) 45 | -11/Scrapyard | Entered Materials 492 | -10/Materials | Core integrity fell below 50% 554 | -10/Materials | Discovered new exit (range 5) 561 | -10/Materials | Identified exit to Materials 562 | -10/Materials | Entered another Materials area 562 | -9/Materials | Evolved 2 slots: Propulsion x1, Utility x1 890 | -9/Materials | Build established: Mutant 908 | -9/Materials | Discovered new exit (range 15) 1031 | -9/Materials | Self-destructed Last Messages --------------- Overheating: Short circuit. K-01 Serf collects debris. S-10 Pest suffers critical hit (Burn). S-10 Pest destroyed. K-01 Serf collects debris. Power failure, Lgt. Ion Engine shutdown. K-01 Serf collects debris. Overheating: Signal Interpreter damaged (-5). Overheating: Beam Rifle damaged (-18). Overheating: Beam Cannon damaged (-27). Overheating: Signal Interpreter damaged (-1). Overheating: Aluminum Leg damaged (-21). Overheating: System interference. Beam Cannon temporarily disabled. Signal Interpreter temporarily disabled. K-01 Serf collects debris. Overheating: Energy bleed (-24). Beam Cannon destroyed. Dropped Broken Aluminum Leg. Power failure, Lgt. Ion Engine shutdown. Map ----- +----------------------------------------------------+ | ?????????????????????????????????????????????????? | | ?????????????????????????????????????????????????? | | ?????????????????????????????????????????????????? | | ?????????????????????????????????????????????????? | | ?????????????????????????????????????????????????? | | ?????????????????????????????????????????????????? | | ?????????????????????????????????????????????????? | | ?????????????????????????????????????????????????? | | ?????????????????????????????????????????????????? | | ?????????????????????????????????????????????????? | | ?????????????????????????+???????????????????????? | | ????????????????????????? ???????????????????????? | | ????????????????????????? #??????????????????????? | | ????????????????????????? #??????????????????????? | | ????????????????????????? #??????????????????????? | | ??????????????##########? #??????????????????????? | | ??????????????# #? #??????????????????????? | | ??????????????# """ ## #??????????????????????? | | ??????????????# [""" ## #??????????????????????? | | ??????????????# """ ## #??????????????????????? | | ??????????????#] """ ##*#??????????????????????? | | ??????????????# """ +=%#??????????????????????? | | ??????????????# #!|#??????????????????????? | | ??????????????# # #??????????????????????? | | ??????????????# + #??????????????????????? | | ??????????????#####+####%@#??????????????????????? | | ????????????????# ##*s##?????????????????????? | | ????????????????# =%[ #?????????????????????? | | ????????????????# T k!* #?????????????????????? | | ????????????????# #?????????????????????? | | ????????????????# ####g##+###????????????????? | | ????????????????## ## #????????????????? | | ?????????????????# ?# u #????????????????? | | ?????????????????# ??# #????????????????? | | ?????????????????# ?# #???#######??????? | | ##??????# ## ##+############ ?????? | | ????? *% / ??????? | | ?????? < %= ??????? | | ??????? """ """ """ """ """??????? | | ????????# ## """ """ """ """ """ ?"???? | | ????????######???# """ """ """ """ """ """?? | | ?????????????????+ | | ?????????????????# | | ?????????????????# ### ^ #####?? | | ?????????????????# % #???? #?????? | | ?????????????????########### #???????????? | | ????????????????????# # #???????????? | | ????????????????????# + #???????????? | | ????????????????????# [[[ # #???????????? | | ????????????????????# [[ ?# #???????????? | +----------------------------------------------------+ Best States ------------- Heat Dissipation 28 Energy Generation 10 Energy Capacity 125 Matter Stores 300 Matter Capacity 300 Sight Range 16 Terrain Scan Density 10 Armor Coverage 150 Evasion (%) 55 Item Schematics ----------------- None Robot Schematics ------------------ None Fabricated ------------ Nothing Repaired ---------- Nothing Alien Tech Used ----------------- None Achievements -------------- None Challenges ------------ None Game ------ Seed FieldthrustPortableRipteeth Manual? 0 Play Time 00:12:43 Cumulative 7.1 hours Start 2025.05.08 @ 00:31:59 End 2025.05.18 @ 00:03:45 Sessions 5 Manual Loads 0 Difficulty Rogue Special Mode None Game No. 16 Rogue 15 Adventurer 0 Explorer 1 Win Type - Total 0 Types 0/0/0/0/0/0/0/0/0/0 Lore% 5 Gallery% 12 Achievement% 13 Wizard Run 0 Options --------- Layout 1 ASCII 0 Keyboard 0 Movement Mouse Keybinds 0 Fullscreen 1 Font 32/SmallcapsGlow Map View 50x35 Zoom Use 0% Tactical HUD 0 Map Filters NONE Filters NONE Steam 1 RUN: 0d777c20-b82d-4516-977b-ede5c86a3ab4